fUSD/lending_fUSD_20250823
["ID","MTS","AMOUNT","RATE_DAILY","PERIOD"]
[381001624,1755931848769,-400.0,0.00013698,2]
[381001627,1755931848780,-799.36,0.00013698,2]
[381001629,1755931848790,-445.67,0.00013698,2]
[381001631,1755931848799,-400.0,0.00013698,2]
[381001633,1755931848809,-1096.26,0.00013698,2]
[381001635,1755931848818,-400.0,0.00013698,2]
[381001637,1755931848827,-403.09495321,0.00013698,2]
[381001639,1755931848837,-3576.26,0.00013698,2]
[381001641,1755931848847,-400.0,0.00013698,2]
[381001643,1755931848858,-456.62,0.00013698,2]
[381001645,1755931848868,-400.0,0.00013698,2]
[381001647,1755931848878,-449.09,0.00013698,2]
[381001649,1755931848888,-400.0,0.00013698,2]
[381001651,1755931848897,-543.95,0.00013698,2]
[381001653,1755931848907,-652.49,0.00013698,2]
[381001655,1755931848917,-400.0,0.00013698,2]
[381001657,1755931848928,-400.0,0.00013698,2]
[381001659,1755931848937,-441.43,0.00013698,2]
[381001661,1755931848947,-400.0,0.00013698,2]
[381001663,1755931848957,-783.9,0.00013698,2]
[381001666,1755931848967,-485.98,0.00013698,2]
[381001668,1755931848976,-499.06,0.00013698,2]
[381001670,1755931848986,-400.0,0.00013698,2]
[381001672,1755931848995,-521.82,0.00013698,2]
[381001674,1755931849005,-442.62,0.00013698,2]
[381001676,1755931849015,-400.0,0.00013698,2]
[381001678,1755931849025,-410.21,0.00013698,2]
[381001680,1755931849037,-504.63,0.00013698,2]
[381001682,1755931849047,-400.0,0.00013698,2]
[381001684,1755931849056,-400.0,0.00013698,2]
[381001686,1755931849066,-400.0,0.00013698,2]
[381001688,1755931849076,-400.0,0.00013698,2]
[381001690,1755931849085,-696.56,0.00013698,2]
[381001692,1755931849094,-606.25,0.00013698,2]
[381001694,1755931849104,-400.0,0.00013698,2]
[381001696,1755931849113,-400.0,0.00013698,2]
[381001698,1755931849123,-505.23,0.00013698,2]
[381001700,1755931849133,-680.71,0.00013698,2]
[381001702,1755931849143,-415.85,0.00013698,2]
[381001704,1755931849152,-520.67,0.00013698,2]
[381001706,1755931849164,-400.0,0.00013698,2]
[381001708,1755931849174,-400.0,0.00013698,2]
[381001710,1755931849184,-400.0,0.00013698,2]
[381001712,1755931849194,-400.0,0.00013698,2]
[381001714,1755931849203,-400.0,0.00013698,2]
[381001716,1755931849213,-400.0,0.00013698,2]
[381001718,1755931849223,-594.68,0.00013698,2]
[381001720,1755931849242,-1044.75,0.00013698,2]
[381001721,1755931849255,-400.0,0.00013698,2]
[381001722,1755931849265,-400.0,0.00013698,2]
[381001723,1755931849275,-416.68,0.00013698,2]
[381001724,1755931849286,-1954.6,0.00013698,2]
[381001725,1755931849296,-3277.28,0.00013698,2]
[381001726,1755931849306,-433.59,0.00013698,2]
[381001727,1755931849317,-485.6,0.00013698,2]
[381001728,1755931849327,-446.61,0.00013698,2]
[381001729,1755931849337,-661.25,0.00013698,2]
[381001730,1755931849347,-400.0,0.00013698,2]
[381001731,1755931849357,-792.71,0.00013698,2]
[381001732,1755931849367,-400.0,0.00013698,2]
[381001733,1755931849378,-400.0,0.00013698,2]
[381001734,1755931849388,-400.0,0.00013698,2]
[381001735,1755931849398,-444.03,0.00013698,2]
[381001736,1755931849408,-421.62,0.00013698,2]
[381001737,1755931849419,-400.0,0.00013698,2]
[381001738,1755931849429,-400.0,0.00013698,2]
[381001739,1755931849439,-484.61,0.00013698,2]
[381001740,1755931849449,-456.8,0.00013698,2]
[381001741,1755931849460,-400.0,0.00013698,2]
[381001742,1755931849470,-420.41,0.00013698,2]
[381001743,1755931849481,-400.0,0.00013698,2]
[381001744,1755931849491,-513.41,0.00013698,2]
[381001745,1755931849500,-631.74,0.00013698,2]
[381001746,1755931849510,-781.82,0.00013698,2]
[381001747,1755931849520,-400.0,0.00013698,2]
[381001748,1755931849529,-400.0,0.00013698,2]
[381001749,1755931849539,-400.0,0.00013698,2]
[381001750,1755931849551,-400.0,0.00013698,2]
[381001751,1755931849561,-400.0,0.00013698,2]
[381001752,1755931849571,-400.0,0.00013698,2]
[381001753,1755931849580,-424.8,0.00013698,2]
[381001754,1755931849590,-7509.32,0.00013698,2]
[381001755,1755931849600,-400.0,0.00013698,2]
[381001756,1755931849610,-400.0,0.00013698,2]
[381001757,1755931849623,-400.0,0.00013698,2]
[381001758,1755931849638,-400.0,0.00013698,2]
[381001759,1755931849648,-471.17,0.00013698,2]
[381001760,1755931849659,-466.59,0.00013698,2]
[381001761,1755931849670,-538.39,0.00013698,2]
[381001762,1755931849680,-400.0,0.00013698,2]
[381001763,1755931849692,-400.0,0.00013698,2]
[381001764,1755931849702,-400.0,0.00013698,2]
[381001765,1755931849712,-400.0,0.00013698,2]
[381001766,1755931849722,-409.8377083,0.00013698,2]
[381001767,1755931849732,-400.0,0.00013698,2]
[381001768,1755931849743,-400.0,0.00013698,2]
[381001769,1755931849753,-921.46,0.00013698,2]
[381001770,1755931849763,-544.89,0.00013698,2]
[381001771,1755931849773,-813.48,0.00013698,2]
[381001772,1755931849784,-400.0,0.00013698,2]
[381001773,1755931849794,-400.0,0.00013698,2]
[381001774,1755931849804,-400.0,0.00013698,2]
[381001775,1755931849814,-683.66,0.00013698,2]
[381001776,1755931849824,-400.0,0.00013698,2]
[381001777,1755931849835,-400.0,0.00013698,2]
[381001778,1755931849844,-400.0,0.00013698,2]
[381001779,1755931849855,-400.0,0.00013698,2]
[381001780,1755931849865,-400.0,0.00013698,2]
[381001781,1755931849875,-400.0,0.00013698,2]
[381001782,1755931849885,-458.77,0.00013698,2]
[381001783,1755931849895,-400.0,0.00013698,2]
[381001784,1755931849906,-400.0,0.00013698,2]
[381001785,1755931849916,-906.03,0.00013698,2]
[381001786,1755931849926,-400.0,0.00013698,2]
[381001787,1755931849936,-400.0,0.00013698,2]
[381001788,1755931849946,-400.0,0.00013698,2]
[381001789,1755931849956,-400.0,0.00013698,2]
[381001790,1755931849967,-443.66,0.00013698,2]
[381001791,1755931849977,-426.91,0.00013698,2]
[381001792,1755931849987,-449.16,0.00013698,2]
[381001793,1755931849997,-400.0,0.00013698,2]
[381001794,1755931850007,-400.0,0.00013698,2]
[381001795,1755931850017,-405.93,0.00013698,2]
[381001796,1755931850027,-400.0,0.00013698,2]
[381001797,1755931850038,-400.0,0.00013698,2]
[381001798,1755931850048,-549.75,0.00013698,2]
[381001799,1755931850058,-400.57632326,0.00013698,2]
[381001800,1755931850068,-636.32,0.00013698,2]
[381001801,1755931850078,-400.0,0.00013698,2]
[381001802,1755931850089,-400.0,0.00013698,2]
[381001803,1755931850099,-400.0,0.00013698,2]
[381001804,1755931850109,-400.0,0.00013698,2]
[381001805,1755931850119,-555.69,0.00013698,2]
[381001806,1755931850129,-400.0,0.00013698,2]
[381001807,1755931850138,-400.0,0.00013698,2]
[381001808,1755931850149,-400.0,0.00013698,2]
[381001809,1755931850158,-538.46,0.00013698,2]
[381001810,1755931850169,-400.0,0.00013698,2]
[381001811,1755931850179,-400.0,0.00013698,2]
[381001812,1755931850189,-751.28,0.00013698,2]
[381001813,1755931850198,-448.42,0.00013698,2]
[381001814,1755931850208,-400.0,0.00013698,2]
[381001815,1755931850218,-412.19,0.00013698,2]
[381001816,1755931850228,-400.0,0.00013698,2]
[381001817,1755931850604,-1000.0,0.00013698,2]
[381001818,1755931850660,-513.31,0.00013698,2]
[381001819,1755931850671,-599.09,0.00013698,2]
[381001820,1755931850681,-404.84965755,0.00013698,2]
[381001821,1755931850693,-402.28519894,0.00013698,2]
[381001822,1755931850703,-400.0,0.00013698,2]
[381001823,1755931850713,-400.0,0.00013698,2]
[381001824,1755931850722,-400.0,0.00013698,2]
[381001825,1755931850732,-1011.95,0.00013698,2]
[381001826,1755931850742,-434.17,0.00013698,2]
[381001827,1755931850751,-400.0,0.00013698,2]
[381001828,1755931850761,-452.6,0.00013698,2]
[381001829,1755931850770,-694.9,0.00013698,2]
[381001830,1755931850781,-575.32,0.00013698,2]
[381001831,1755931850790,-610.35,0.00013698,2]
[381001832,1755931850799,-400.0,0.00013698,2]
[381001833,1755931850809,-788.97,0.00013698,2]
[381001834,1755931850818,-1197.1,0.00013698,2]
[381001835,1755931850827,-400.0,0.00013698,2]
[381001836,1755931850837,-400.0,0.00013698,2]
[381001837,1755931850847,-400.0,0.00013698,2]
[381001838,1755931850858,-509.0,0.00013698,2]
[381001839,1755931850869,-704.32,0.00013698,2]
[381001840,1755931850878,-400.0,0.00013698,2]
[381001841,1755931850889,-400.0,0.00013698,2]
[381001842,1755931850903,-400.0,0.00013698,2]
[381001843,1755931850914,-400.0,0.00013698,2]
[381001844,1755931850924,-400.0,0.00013698,2]
[381001845,1755931850934,-400.0,0.00013698,2]
[381001846,1755931850944,-497.73,0.00013698,2]
[381001847,1755931850953,-400.0,0.00013698,2]
[381001848,1755931850964,-541.81,0.00013698,2]
[381001849,1755931850975,-400.0,0.00013698,2]
[381001850,1755931850987,-400.0,0.00013698,2]
[381001851,1755931850998,-446.96,0.00013698,2]
[381001852,1755931851007,-477.92,0.00013698,2]
[381001853,1755931851017,-400.0,0.00013698,2]
[381001854,1755931851027,-400.0,0.00013698,2]
[381001855,1755931851036,-593.23,0.00013698,2]
[381001856,1755931851046,-400.0,0.00013698,2]
[381001857,1755931851056,-400.0,0.00013698,2]
[381001858,1755931851065,-400.0,0.00013698,2]
[381001859,1755931851075,-496.07,0.00013698,2]
[381001860,1755931851084,-400.0,0.00013698,2]
[381001861,1755931851094,-400.0,0.00013698,2]
[381001862,1755931851103,-400.0,0.00013698,2]
[381001863,1755931851113,-400.0,0.00013698,2]
[381001864,1755931851122,-400.0,0.00013698,2]
[381001865,1755931851132,-706.29,0.00013698,2]
[381001866,1755931851141,-400.0,0.00013698,2]
[381001867,1755931851151,-958.82699333,0.00013698,2]
[381001868,1755931851160,-632.38,0.00013698,2]
[381001869,1755931851171,-920.87,0.00013698,2]
[381001870,1755931851180,-400.0,0.00013698,2]
[381001871,1755931851190,-526.18,0.00013698,2]
[381001872,1755931851199,-546.22,0.00013698,2]
[381001873,1755931851208,-400.0,0.00013698,2]
[381001874,1755931851217,-400.0,0.00013698,2]
[381001875,1755931851227,-427.12,0.00013698,2]
[381001876,1755931851238,-400.0,0.00013698,2]
[381001877,1755931851247,-450.77,0.00013698,2]
[381001878,1755931851256,-431.18,0.00013698,2]
[381001879,1755931851266,-693.61,0.00013698,2]
[381001880,1755931851275,-400.0,0.00013698,2]
[381001881,1755931851285,-601.23,0.00013698,2]
[381001882,1755931851297,-400.0,0.00013698,2]
[381001883,1755931851307,-777.09,0.00013698,2]
[381001884,1755931851317,-413.05,0.00013698,2]
[381001885,1755931851327,-743.95,0.00013698,2]
[381001886,1755931851337,-879.65,0.00013698,2]
[381001887,1755931851346,-400.0,0.00013698,2]
[381001888,1755931851355,-400.0,0.00013698,2]
[381001889,1755931851365,-400.0,0.00013698,2]
[381001890,1755931851375,-400.0,0.00013698,2]
[381001891,1755931851386,-508.39,0.00013698,2]
[381001892,1755931851396,-400.0,0.00013698,2]
[381001893,1755931851405,-400.0,0.00013698,2]
[381001894,1755931851414,-470.07,0.00013698,2]
[381001895,1755931851424,-400.0,0.00013698,2]
[381001896,1755931851433,-400.0,0.00013698,2]
[381001897,1755931851443,-548.81,0.00013698,2]
[381001898,1755931851458,-400.0,0.00013698,2]
[381001899,1755931851468,-400.0,0.00013698,2]
[381001900,1755931851479,-651.92,0.00013698,2]
[381001901,1755931851489,-400.0,0.00013698,2]
[381001902,1755931851499,-400.0,0.00013698,2]
[381001903,1755931851510,-605.83,0.00013698,2]
[381001904,1755931851522,-400.0,0.00013698,2]
[381001905,1755931851532,-558.41,0.00013698,2]
[381001906,1755931851542,-400.0,0.00013698,2]
[381001907,1755931851552,-400.0,0.00013698,2]
[381001908,1755931851562,-400.0,0.00013698,2]
[381001909,1755931851572,-400.0,0.00013698,2]
[381001910,1755931851582,-400.0,0.00013698,2]
[381001911,1755931851592,-400.0,0.00013698,2]
[381001912,1755931851602,-459.31,0.00013698,2]
[381001913,1755931851612,-400.0,0.00013698,2]
[381001914,1755931851624,-400.0,0.00013698,2]
[381001915,1755931851634,-400.0,0.00013698,2]
[381001916,1755931851644,-1169.47,0.00013698,2]
[381001917,1755931851654,-400.0,0.00013698,2]
[381001918,1755931851665,-559.51,0.00013698,2]
[381001919,1755931851675,-400.79784191,0.00013698,2]
[381001920,1755931851689,-400.0,0.00013698,2]
[381001921,1755931851699,-855.99,0.00013698,2]
[381001922,1755931851710,-506.6,0.00013698,2]
[381001923,1755931851719,-400.0,0.00013698,2]
[381001924,1755931851729,-400.0,0.00013698,2]
[381001925,1755931851739,-400.0,0.00013698,2]
[381001926,1755931851749,-400.0,0.00013698,2]
[381001927,1755931851760,-400.0,0.00013698,2]
[381001928,1755931851770,-816.89,0.00013698,2]
[381001929,1755931851780,-400.0,0.00013698,2]
[381001930,1755931851790,-400.0,0.00013698,2]
[381001931,1755931851800,-400.0,0.00013698,2]
[381001932,1755931851810,-400.0,0.00013698,2]
[381001933,1755931851820,-400.0,0.00013698,2]
[381001934,1755931851830,-566.28,0.00013698,2]
[381001935,1755931851840,-616.89,0.00013698,2]
[381001936,1755931851850,-487.16,0.00013698,2]
[381001937,1755931851860,-400.0,0.00013698,2]
[381001938,1755931851870,-400.83403888,0.00013698,2]
[381001939,1755931851880,-1061.96,0.00013698,2]
[381001940,1755931851891,-400.0,0.00013698,2]
[381001941,1755931851901,-400.0,0.00013698,2]
[381001942,1755931851913,-400.0,0.00013698,2]
[381001943,1755931851923,-400.0,0.00013698,2]
[381001944,1755931851933,-443.62,0.00013698,2]
[381001945,1755931851943,-400.0,0.00013698,2]
[381001946,1755931851954,-400.0,0.00013698,2]
[381001947,1755931851964,-213.18,0.00013698,2]
[381001948,1755931851974,-303.87,0.00013698,2]
[381001949,1755931851984,-215.47,0.00013698,2]
[381001950,1755931851995,-214.41,0.00013698,2]
[381001951,1755931852004,-1000.0,0.00013699,2]
[381001952,1755931852015,-200.0,0.00013699,2]
[381001953,1755931852025,-1000.0,0.00013699,2]
[381001954,1755931852035,-632.34,0.00013699,2]
[381001955,1755931852045,-208.59,0.000137,2]
[381001956,1755931852055,-304.66,0.000137,2]
[381001957,1755931852065,-209.34,0.000137,2]
[381001958,1755931852075,-489.97657065,0.00013717,2]
[381001959,1755931852084,-259.0,0.00013761,2]
[381001960,1755931852094,-166.66,0.00013833,2]
[381001961,1755931852105,-298.26089446,0.00013864,2]
[381001962,1755931852115,-414.1417092,0.00013872,2]
[381001963,1755931852125,-176.16012118,0.00013872,2]
[381001964,1755931852136,-259.0,0.00013893,2]
[381001965,1755931852146,-1071.2223,0.00013899,2]
[381001966,1755931852156,-543.99932556,0.000139,2]
[381001967,1755931852168,-543.99932551,0.000139,2]
[381001968,1755931852178,-543.99932551,0.000139,2]
[381001969,1755931852187,-543.99932551,0.000139,2]
[381001970,1755931852197,-543.99932551,0.000139,2]
[381001971,1755931852207,-543.99932551,0.000139,2]
[381001972,1755931852217,-543.99932551,0.000139,2]
[381001973,1755931852227,-543.99932551,0.000139,2]
[381001974,1755931852237,-543.99932551,0.000139,2]
[381001975,1755931852247,-543.99932551,0.000139,2]
[381001976,1755931852256,-3292.0,0.00013906,2]
[381001977,1755931852266,-259.0,0.00013927,2]
[381001978,1755931852275,-150.0,0.00013958,2]
[381001979,1755931852286,-313.22763603,0.00013959,2]
[381001980,1755931852295,-399.21169297,0.00013959,2]
[381001981,1755931852306,-485.19574992,0.00013959,2]
[381001982,1755931852316,-571.17980687,0.0001396,2]
[381001983,1755931852326,-657.16386382,0.0001396,2]
[381001984,1755931852336,-743.14792077,0.00013961,2]
[381001985,1755931852346,-829.13197771,0.00013961,2]
[381001986,1755931852356,-915.11603466,0.00013962,2]
[381001987,1755931852366,-1001.10009161,0.00013962,2]
[381001988,1755931852376,-435.22,0.00013971,2]
[381001989,1755931852388,-400.0,0.00013971,2]
[381001990,1755931852398,-551.18,0.00013971,2]
[381001991,1755931852408,-1226.13,0.00013971,2]
[381001992,1755931852422,-649.55,0.00013971,2]
[381001993,1755931852432,-691.45,0.00013971,2]
[381001994,1755931852441,-400.0,0.00013971,2]
[381001995,1755931852451,-873.29,0.00013971,2]
[381001996,1755931852462,-545.7,0.00013971,2]
[381001997,1755931852472,-458.97,0.00013971,2]
[381001998,1755931852481,-1812.74,0.00013971,2]
[381001999,1755931852491,-414.1,0.00013971,2]
[381002000,1755931852501,-686.42,0.00013971,2]
[381002001,1755931852513,-1262.42,0.00013971,2]
[381002002,1755931852526,-400.0,0.00013971,2]
[381002003,1755931852537,-749.34,0.00013971,2]
[381002004,1755931852551,-1619.0,0.00013972,2]
[381002005,1755931852560,-922.95,0.00013972,2]
[381002006,1755931852570,-400.0,0.00013972,2]
[381002007,1755931852580,-433.71,0.00013972,2]
[381002008,1755931852589,-400.0,0.00013972,2]
[381002009,1755931852608,-788.51,0.00013972,2]
[381002010,1755931852625,-532.76,0.00013972,2]
[381002011,1755931852636,-400.0,0.00013972,2]
[381002012,1755931852647,-400.0,0.00013972,2]
[381002013,1755931852658,-400.0,0.00013972,2]
[381002014,1755931852669,-400.0,0.00013972,2]
[381002015,1755931852680,-990.83,0.00013972,2]
[381002016,1755931852691,-400.0,0.00013972,2]
[381002017,1755931852701,-912.45,0.00013972,2]
[381002018,1755931852711,-465.12,0.00013972,2]
[381002019,1755931852721,-400.0,0.00013972,2]
[381002020,1755931852731,-400.0,0.00013972,2]
[381002021,1755931852742,-400.0,0.00013972,2]
[381002022,1755931852752,-400.0,0.00013972,2]
[381002023,1755931852762,-400.0,0.00013972,2]
[381002024,1755931852772,-400.0,0.00013972,2]
[381002025,1755931852783,-400.0,0.00013972,2]
[381002026,1755931852793,-400.0,0.00013972,2]
[381002027,1755931852804,-400.0,0.00013972,2]
[381002028,1755931852814,-221.35,0.00013972,2]
[381002029,1755931852824,-435.39,0.00013972,2]
[381002030,1755931852834,-400.0,0.00013972,2]
[381002031,1755931852844,-400.0,0.00013972,2]
[381002032,1755931852854,-400.0,0.00013972,2]
[381002033,1755931852864,-400.0,0.00013972,2]
[381002034,1755931852875,-460.81,0.00013972,2]
[381002035,1755931852886,-400.0,0.00013972,2]
[381002036,1755931852895,-400.0,0.00013972,2]
[381002037,1755931852906,-400.0,0.00013972,2]
[381002038,1755931852917,-400.0,0.00013972,2]
[381002039,1755931852927,-400.0,0.00013972,2]
[381002040,1755931852938,-400.0,0.00013972,2]
[381002041,1755931852948,-400.0,0.00013972,2]
[381002042,1755931852958,-400.0,0.00013972,2]
[381002043,1755931852968,-400.0,0.00013972,2]
[381002044,1755931852978,-400.0,0.00013972,2]
[381002045,1755931852988,-400.0,0.00013972,2]
[381002046,1755931853002,-400.0,0.00013972,2]
[381002047,1755931853012,-400.0,0.00013972,2]
[381002048,1755931853022,-400.0,0.00013972,2]
[381002049,1755931853033,-400.0,0.00013972,2]
[381002050,1755931853043,-400.0,0.00013972,2]
[381002051,1755931853053,-400.0,0.00013972,2]
[381002052,1755931853063,-400.0,0.00013972,2]
[381002053,1755931853074,-400.0,0.00013972,2]
[381002054,1755931853084,-400.0,0.00013972,2]
[381002055,1755931853095,-400.0,0.00013972,2]
[381002056,1755931853298,-400.0,0.00013972,2]
[381002057,1755931853307,-400.0,0.00013972,2]
[381002058,1755931853319,-400.78586368,0.00013972,2]
[381002059,1755931853329,-400.0,0.00013972,2]
[381002060,1755931853342,-400.0,0.00013972,2]
[381002061,1755931853352,-470.28,0.00013972,2]
[381002062,1755931853362,-400.0,0.00013972,2]
[381002063,1755931853372,-449.25286987,0.00013972,2]
[381002064,1755931853381,-1000.0,0.00013972,2]
[381002065,1755931853391,-400.0,0.00013972,2]
[381002066,1755931853401,-400.0,0.00013972,2]
[381002067,1755931853411,-506.53,0.00013972,2]
[381002068,1755931853421,-400.0,0.00013972,2]
[381002069,1755931853430,-471.89,0.00013972,2]
[381002070,1755931853439,-400.0,0.00013972,2]
[381002071,1755931853449,-414.85,0.00013972,2]
[381002072,1755931853458,-400.0,0.00013972,2]
[381002073,1755931853468,-400.0,0.00013972,2]
[381002074,1755931853478,-588.35,0.00013972,2]
[381002075,1755931853487,-490.76,0.00013972,2]
[381002076,1755931853497,-466.35,0.00013972,2]
[381002077,1755931853506,-400.0,0.00013972,2]
[381002078,1755931853515,-400.0,0.00013972,2]
[381002079,1755931853525,-938.24,0.00013972,2]
[381002080,1755931853534,-400.0,0.00013972,2]
[381002081,1755931853543,-400.0,0.00013972,2]
[381002082,1755931853553,-400.0,0.00013972,2]
[381002083,1755931853562,-510.43505385,0.00013972,2]
[381002084,1755931853575,-400.0,0.00013972,2]
[381002085,1755931853585,-472.65,0.00013972,2]
[381002086,1755931853595,-669.69,0.00013972,2]
[381002087,1755931853604,-400.0,0.00013972,2]
[381002088,1755931853616,-572.36,0.00013972,2]
[381002089,1755931853626,-400.0,0.00013972,2]
[381002090,1755931853636,-400.0,0.00013972,2]
[381002091,1755931853645,-400.0,0.00013972,2]
[381002092,1755931853656,-400.0,0.00013972,2]
[381002093,1755931853666,-400.0,0.00013972,2]
[381002094,1755931853676,-400.0,0.00013972,2]
[381002095,1755931853686,-400.0,0.00013972,2]
[381002096,1755931853697,-400.0,0.00013972,2]
[381002097,1755931853708,-400.0,0.00013972,2]
[381002098,1755931853717,-400.0,0.00013972,2]
[381002099,1755931853727,-400.0,0.00013972,2]
[381002100,1755931853736,-400.0,0.00013972,2]
[381002101,1755931853746,-400.0,0.00013972,2]
[381002102,1755931853756,-400.0,0.00013972,2]
[381002103,1755931853766,-400.0,0.00013972,2]
[381002104,1755931853775,-400.0,0.00013972,2]
[381002105,1755931853785,-456.38823121,0.00013972,2]
[381002106,1755931853795,-400.0,0.00013972,2]
[381002107,1755931853807,-400.0,0.00013972,2]
[381002108,1755931853817,-451.87,0.00013972,2]
[381002109,1755931853826,-400.0,0.00013972,2]
[381002110,1755931853836,-400.0,0.00013972,2]
[381002111,1755931853846,-545.47,0.00013972,2]
[381002112,1755931853857,-400.0,0.00013972,2]
[381002113,1755931853867,-550.96,0.00013972,2]
[381002114,1755931853877,-400.0,0.00013972,2]
[381002115,1755931853887,-400.0,0.00013972,2]
[381002116,1755931853896,-400.0,0.00013972,2]
[381002117,1755931853906,-400.0,0.00013972,2]
[381002118,1755931853915,-400.0,0.00013972,2]
[381002119,1755931853925,-400.0,0.00013972,2]
[381002120,1755931853935,-400.0,0.00013972,2]
[381002121,1755931853944,-400.0,0.00013972,2]
[381002122,1755931853954,-400.0,0.00013972,2]
[381002123,1755931853964,-558.8,0.00013972,2]
[381002124,1755931853973,-400.0,0.00013972,2]
[381002125,1755931853982,-400.0,0.00013972,2]
[381002126,1755931853992,-400.0,0.00013972,2]
[381002127,1755931854002,-430.86,0.00013972,2]
[381002128,1755931854011,-400.0,0.00013972,2]
[381002129,1755931854021,-400.0,0.00013972,2]
[381002130,1755931854030,-400.0,0.00013972,2]
[381002131,1755931854042,-400.0,0.00013972,2]
[381002132,1755931854052,-400.0,0.00013972,2]
[381002133,1755931854062,-400.0,0.00013972,2]
[381002134,1755931854072,-400.0,0.00013972,2]
[381002135,1755931854082,-400.0,0.00013972,2]
[381002136,1755931854091,-400.0,0.00013972,2]
[381002137,1755931854100,-400.0,0.00013972,2]
[381002138,1755931854110,-400.0,0.00013972,2]
[381002139,1755931854119,-400.0,0.00013972,2]
[381002140,1755931854129,-400.0,0.00013972,2]
[381002141,1755931854138,-400.0,0.00013972,2]
[381002142,1755931854148,-400.0,0.00013972,2]
[381002143,1755931854157,-566.81,0.00013972,2]
[381002144,1755931854167,-415.04,0.00013972,2]
[381002145,1755931854177,-400.0,0.00013972,2]
[381002146,1755931854187,-402.93363478,0.00013972,2]
[381002147,1755931854197,-450.59911658,0.00013972,2]
[381002148,1755931854207,-400.0,0.00013972,2]
[381002149,1755931854216,-400.0,0.00013972,2]
[381002150,1755931854226,-400.0,0.00013972,2]
[381002151,1755931854236,-400.0,0.00013972,2]
[381002152,1755931854248,-400.0,0.00013972,2]
[381002153,1755931854267,-400.0,0.00013972,2]
[381002154,1755931854277,-400.0,0.00013972,2]
[381002155,1755931854286,-400.0,0.00013972,2]
[381002156,1755931854296,-400.0,0.00013972,2]
[381002157,1755931854305,-464.72,0.00013972,2]
[381002158,1755931854315,-415.32,0.00013972,2]
[381002159,1755931854324,-400.0,0.00013972,2]
[381002160,1755931854333,-453.33,0.00013972,2]
[381002161,1755931854343,-402.24,0.00013972,2]
[381002162,1755931854352,-400.0,0.00013972,2]
[381002163,1755931854362,-400.0,0.00013972,2]
[381002164,1755931854371,-577.59,0.00013972,2]
[381002165,1755931854380,-400.0,0.00013972,2]
[381002166,1755931854390,-400.0,0.00013972,2]
[381002167,1755931854400,-400.0,0.00013972,2]
[381002168,1755931854409,-400.0,0.00013972,2]
[381002169,1755931854420,-416.84,0.00013972,2]
[381002170,1755931854430,-361.24,0.00013972,2]
[381002171,1755931854439,-400.0,0.00013972,2]
[381002172,1755931854449,-620.59,0.00013972,2]